bitfinex/quotes_BTCUSD_20241226
["timestamp","ask_amount","ask_price","bid_price","bid_amount"]
[1735240301211,0.10398632,95752.0,95744.0,0.208889]
[1735240301212,0.10398632,95752.0,95739.0,0.2089]
[1735240301414,0.00479892,95751.0,95748.0,0.002]
[1735240301584,0.10398632,95750.0,95748.0,0.002]
[1735240301982,0.00479892,95749.0,95748.0,0.002]
[1735240302184,0.10878524,95749.0,95748.0,0.002]
[1735240302685,0.10878524,95749.0,95748.0,0.210879]
[1735240302924,0.10398632,95749.0,95748.0,0.210879]
[1735240303121,0.10398632,95749.0,95748.0,0.208879]
[1735240303467,0.10878524,95749.0,95748.0,0.211879]
[1735240303935,0.10878524,95749.0,95748.0,0.209879]
[1735240303936,0.10398632,95749.0,95748.0,0.209879]
[1735240304145,0.10878524,95749.0,95748.0,0.212879]
[1735240304567,0.10878524,95749.0,95748.0,0.213879]
[1735240304897,0.12716376,95749.0,95748.0,0.005]
[1735240306148,0.12716376,95749.0,95728.0,0.000171]
[1735240306331,0.10398632,95748.0,95728.0,0.000171]
[1735240306528,0.10398632,95748.0,95740.0,0.208898]
[1735240306750,0.0170354,95747.0,95736.0,0.208906]
[1735240306953,0.10398632,95746.0,95739.0,0.208899]
[1735240307380,0.00479892,95745.0,95739.0,0.208899]
[1735240307606,0.10398632,95744.0,95739.0,0.208899]
[1735240307811,0.10398632,95744.0,95742.0,0.208892]
[1735240308199,0.00479892,95743.0,95742.0,0.208892]
[1735240308525,0.10398632,95743.0,95742.0,0.208892]
[1735240309442,0.10398632,95743.0,95742.0,0.20904704]
[1735240310547,0.001,95746.0,95743.0,0.208891]
[1735240310717,0.10398632,95745.0,95743.0,0.208891]
[1735240310926,0.10878524,95745.0,95743.0,0.208891]
[1735240311164,0.10878524,95745.0,95743.0,0.135891]
[1735240311287,0.10878524,95745.0,95742.0,0.00415504]
[1735240311494,0.01087852,95744.0,95742.0,0.00315504]
[1735240311701,0.22918632,95743.0,95742.0,0.00315504]
[1735240311901,0.3569406,95743.0,95742.0,0.00015504]
[1735240312108,0.6069406,95743.0,95742.0,0.00015504]
[1735240312335,0.56872251,95743.0,95742.0,0.00015504]
[1735240312541,0.66872251,95743.0,95742.0,0.00015504]
[1735240312846,0.56872251,95743.0,95742.0,0.00015504]
[1735240313260,0.66872251,95743.0,95742.0,0.00015504]
[1735240313444,0.56872251,95743.0,95742.0,0.00015504]
[1735240313821,0.3839406,95743.0,95742.0,0.00015504]
[1735240314027,0.4839406,95743.0,95742.0,0.00015504]
[1735240314229,0.2,95740.0,95739.0,0.000171]
[1735240314429,0.57918632,95740.0,95739.0,0.000171]
[1735240314697,0.5839001,95740.0,95739.0,0.000171]
[1735240314866,0.64472922,95740.0,95739.0,0.000171]
[1735240316298,0.2,95738.0,95711.0,0.208962]
[1735240316502,0.10398632,95734.0,95728.0,0.00015517]
[1735240316844,0.00471378,95733.0,95728.0,0.00015517]
[1735240317051,0.10398632,95732.0,95728.0,0.00015517]
[1735240317252,0.13485633,95732.0,95728.0,0.00015517]
[1735240317454,0.00471378,95731.0,95728.0,0.00015517]
[1735240317653,0.10398632,95730.0,95728.0,0.00015517]
[1735240318076,0.00471378,95729.0,95728.0,0.00015517]
[1735240318300,0.1087001,95729.0,95728.0,0.00015517]
[1735240318512,0.12265711,95729.0,95728.0,0.00115517]
[1735240318906,0.12265711,95729.0,95728.0,0.00015517]
[1735240319281,0.47125711,95729.0,95728.0,0.00015517]
[1735240319578,0.1256,95717.0,95695.0,0.208995]
[1735240319805,0.0805,95707.0,95688.0,8.56e-05]
[1735240319964,0.04679222,95706.0,95690.0,0.209006]
[1735240320165,0.04679222,95706.0,95688.0,8.56e-05]
[1735240320166,0.10398632,95705.0,95688.0,8.56e-05]
[1735240320361,0.20398632,95701.0,95688.0,8.56e-05]
[1735240320565,0.28448632,95701.0,95688.0,8.56e-05]
[1735240320782,0.1,95695.0,95688.0,8.56e-05]
[1735240320990,0.1256,95689.0,95688.0,0.00024071]
[1735240321288,0.0805,95688.0,95666.0,0.209059]
[1735240321491,0.10398632,95687.0,95679.0,0.209031]
[1735240321894,0.10398632,95687.0,95675.0,0.20904]
[1735240322165,0.09171793,95685.0,95675.0,0.20904]
[1735240322378,0.13613223,95684.0,95676.0,0.209038]
[1735240325869,0.13613223,95684.0,95658.0,0.209077]
[1735240325870,0.13713223,95684.0,95681.0,0.209027]
[1735240326144,0.13713223,95684.0,95681.0,0.136027]
[1735240326453,0.10398632,95684.0,95681.0,0.209027]
[1735240326831,0.10498632,95684.0,95681.0,0.209027]
[1735240327757,0.10498632,95684.0,95681.0,0.418054]
[1735240328938,0.10398632,95684.0,95681.0,0.418054]
[1735240329342,0.001,95684.0,95683.0,0.209023]
[1735240329983,0.00015482,95689.0,95688.0,0.232012]
[1735240330159,8.2e-07,95689.0,95688.0,1.03229832]
[1735240330837,0.0451,95724.0,95688.0,1.03229832]
[1735240330838,0.0451,95724.0,95689.0,0.7193]
[1735240331042,0.0451,95724.0,95723.0,0.208936]
[1735240331043,0.04525514,95724.0,95723.0,0.208936]
[1735240331251,0.10414146,95724.0,95723.0,0.208936]
[1735240331788,0.10414146,95724.0,95721.0,0.208939]
[1735240331985,0.18058632,95722.0,95684.0,0.2319]
[1735240332234,0.0487,95718.0,95699.0,0.208986]
[1735240332546,0.10398632,95717.0,95699.0,0.208986]
[1735240332753,0.10398632,95717.0,95699.0,0.417974]
[1735240332904,0.03210043,95716.0,95699.0,0.417974]
[1735240333110,0.0766,95704.0,95693.0,0.209]
[1735240333333,0.009,95689.0,95688.0,0.002]
[1735240333532,0.11298632,95689.0,95688.0,0.002]
[1735240333732,0.10398632,95689.0,95686.0,0.209016]
[1735240334141,0.10398632,95689.0,95686.0,0.418032]
[1735240334945,0.10498632,95689.0,95688.0,0.009]
[1735240336019,0.001,95689.0,95688.0,0.009]
[1735240336259,0.001,95689.0,95683.0,0.209023]
[1735240336460,0.002,95689.0,95686.0,0.006]
[1735240336668,0.002,95689.0,95688.0,0.359012]
[1735240336873,0.01041415,95724.0,95688.0,0.48599832]
[1735240337076,0.01056929,95724.0,95723.0,0.208936]
[1735240337248,0.10414146,95724.0,95723.0,0.208936]
[1735240338534,0.00015514,95724.0,95723.0,0.208936]
[1735240340072,0.00115514,95724.0,95723.0,0.208936]
[1735240340618,0.00315514,95724.0,95723.0,0.208936]
[1735240341004,0.00015514,95724.0,95723.0,0.208936]
[1735240341214,0.00015514,95724.0,95723.0,0.003]
[1735240341395,0.00015514,95724.0,95723.0,0.007]
[1735240341396,0.00115514,95724.0,95723.0,0.007]
[1735240341592,0.00115514,95724.0,95723.0,0.215936]
[1735240342231,0.00015514,95724.0,95723.0,0.211936]
[1735240342788,0.00015514,95724.0,95723.0,0.208936]
[1735240344441,0.00015514,95724.0,95723.0,0.209936]
[1735240344684,0.00015514,95724.0,95723.0,0.210936]
[1735240345074,0.00015514,95724.0,95723.0,0.209936]
[1735240345384,0.00015514,95724.0,95723.0,0.213936]
[1735240345884,0.00015514,95724.0,95723.0,0.209936]
[1735240346233,0.00015514,95724.0,95723.0,0.005]
[1735240346581,0.00015514,95724.0,95723.0,0.004]
[1735240346741,0.00015514,95724.0,95723.0,0.006]
[1735240347133,0.00015514,95724.0,95723.0,0.214936]
[1735240347334,0.00015514,95724.0,95723.0,0.212936]
[1735240347845,0.00015514,95724.0,95723.0,0.214936]
[1735240348275,0.00015514,95724.0,95723.0,0.210936]
[1735240348644,0.00015514,95724.0,95723.0,0.214936]
[1735240349064,0.00015514,95724.0,95723.0,0.210936]
[1735240349246,0.00115514,95724.0,95723.0,0.214936]
[1735240349445,0.00115514,95724.0,95723.0,0.212936]
[1735240349909,0.00115514,95724.0,95723.0,0.214936]
[1735240350086,0.00015514,95724.0,95723.0,0.210936]
[1735240350410,0.00015514,95724.0,95723.0,0.208936]
[1735240350760,0.00015514,95724.0,95723.0,0.210936]
[1735240351291,0.10414146,95724.0,95723.0,0.002]
[1735240351472,0.12270561,95724.0,95723.0,0.002]
[1735240351875,0.12370561,95724.0,95723.0,0.006]
[1735240352524,0.12270561,95724.0,95723.0,0.002]
[1735240352823,0.12270561,95724.0,95720.0,0.208942]
[1735240353007,0.15368632,95723.0,95720.0,0.208942]
[1735240353178,0.0276736,95722.0,95720.0,0.208942]
[1735240353383,0.10398632,95721.0,95720.0,0.208942]
[1735240354328,0.10398632,95721.0,95690.0,0.209008]
[1735240354531,0.10398632,95719.0,95706.0,0.208972]
[1735240354735,0.10398632,95719.0,95706.0,0.417945]
[1735240354939,0.03835151,95718.0,95706.0,0.208972]
[1735240355142,0.10398632,95717.0,95706.0,0.208972]
[1735240355648,0.10398632,95715.0,95698.0,0.20899]
[1735240355853,0.10398632,95715.0,95669.0,0.5463]
[1735240355854,0.10398632,95710.0,95694.0,0.208998]
[1735240356050,0.10398632,95710.0,95677.0,0.209034]
[1735240356268,0.10398632,95710.0,95706.0,0.001]
[1735240356554,0.10398632,95710.0,95697.0,0.208992]
[1735240357141,0.02145168,95707.0,95691.0,0.209005]
[1735240357348,0.10398632,95703.0,95690.0,0.209008]
[1735240358725,0.10398632,95703.0,95698.0,0.000171]
[1735240358929,0.10398632,95701.0,95698.0,0.000171]
[1735240359152,0.0815,95700.0,95698.0,0.000171]
[1735240359354,0.10398632,95699.0,95698.0,0.000171]
[1735240359557,0.13975933,95699.0,95698.0,0.000171]
[1735240361276,0.09167143,95693.0,95687.0,0.209014]
[1735240361516,0.10398632,95692.0,95687.0,0.209014]
[1735240362430,0.10405732,95692.0,95684.0,0.20902]
[1735240362775,0.10405732,95692.0,95688.0,0.209012]
[1735240364170,0.10405732,95692.0,95688.0,0.418024]
[1735240364370,0.10405732,95692.0,95688.0,0.422024]
[1735240364993,0.00012421,95692.0,95688.0,0.422024]
[1735240365228,0.00012421,95692.0,95688.0,0.5654283]
[1735240365424,0.00012421,95692.0,95691.0,0.15]
[1735240365557,0.00012421,95692.0,95691.0,0.15104487]
[1735240366358,0.00912421,95692.0,95691.0,0.15104487]
[1735240366581,0.00912421,95692.0,95691.0,0.15]
[1735240366827,0.00012421,95692.0,95691.0,0.15]
[1735240367019,0.01012421,95692.0,95691.0,0.15404487]
[1735240367163,0.01012421,95692.0,95691.0,0.153]
[1735240367555,0.00112421,95692.0,95691.0,0.153]
[1735240367810,0.00212421,95692.0,95691.0,0.16004487]
[1735240368017,0.00212421,95692.0,95691.0,0.159]
[1735240369319,0.00212421,95692.0,95691.0,0.16004487]
[1735240369776,0.00212421,95692.0,95691.0,0.159]
[1735240370535,0.00212421,95692.0,95691.0,0.16013047]
[1735240370739,0.00229541,95692.0,95691.0,0.16013047]
[1735240370985,0.00229541,95692.0,95691.0,0.18313047]
[1735240371183,4.1e-07,95692.0,95691.0,0.72943047]
[1735240371403,4.1e-07,95692.0,95691.0,0.7283856]
[1735240371697,4.1e-07,95692.0,95691.0,0.83237192]
[1735240372246,4.1e-07,95692.0,95691.0,0.82337192]
[1735240372730,4.1e-07,95692.0,95691.0,0.83437192]
[1735240374280,4.1e-07,95692.0,95691.0,0.7073856]
[1735240376328,4.1e-07,95692.0,95691.0,0.5573856]
[1735240376527,4.1e-07,95692.0,95691.0,0.0110856]
[1735240378457,4.1e-07,95692.0,95691.0,0.0050856]
[1735240378857,0.0485,95709.0,95691.0,0.0020856]
[1735240379072,0.02103265,95707.0,95700.0,0.208984]
[1735240379291,0.10398632,95706.0,95700.0,0.208984]
[1735240379647,0.10398632,95706.0,95704.0,0.208975]
[1735240380568,0.10598632,95706.0,95704.0,0.208975]
[1735240380720,0.10398632,95706.0,95704.0,0.208975]
[1735240380926,0.02326863,95705.0,95704.0,0.208975]
[1735240381147,0.12725495,95705.0,95704.0,0.208975]
[1735240381950,0.10398632,95705.0,95702.0,0.208979]
[1735240382641,0.10398632,95705.0,95704.0,0.209975]
[1735240382841,0.10398632,95705.0,95704.0,0.208975]
[1735240383071,0.10398632,95705.0,95702.0,0.208979]
[1735240383267,0.10398632,95704.0,95702.0,0.211979]
[1735240383489,0.10398632,95704.0,95702.0,0.209979]
[1735240384824,0.10398632,95704.0,95702.0,0.208979]
[1735240385554,0.10498632,95704.0,95702.0,0.208979]
[1735240385734,0.10398632,95704.0,95702.0,0.208979]
[1735240385912,0.01675722,95703.0,95702.0,0.208979]
[1735240386113,0.12074354,95703.0,95702.0,0.208979]
[1735240386310,0.12074354,95703.0,95701.0,0.208983]
[1735240386495,0.10398632,95702.0,95701.0,0.208983]
[1735240387499,8.56e-05,95705.0,95702.0,0.208981]
[1735240387704,0.10407192,95705.0,95702.0,0.208981]
[1735240387930,0.10407192,95705.0,95702.0,0.417962]
[1735240388589,0.001,95703.0,95702.0,0.208981]
[1735240388998,0.10407192,95705.0,95702.0,0.417962]
[1735240389219,0.12241351,95704.0,95702.0,0.208981]
[1735240390905,0.001,95703.0,95702.0,0.208981]
[1735240391108,0.10498632,95703.0,95702.0,0.208981]
[1735240391314,0.10498632,95703.0,95701.0,0.208983]
[1735240391652,0.10398632,95702.0,95701.0,0.208983]
[1735240392066,0.001,95703.0,95701.0,0.208983]
[1735240392272,0.10498632,95703.0,95701.0,0.208983]
[1735240392473,0.10398632,95703.0,95701.0,0.208983]
[1735240392882,8.56e-05,95705.0,95700.0,0.208985]
[1735240392883,8.56e-05,95705.0,95702.0,0.2716772]
[1735240393090,8.56e-05,95705.0,95704.0,0.208977]
[1735240394169,8.56e-05,95705.0,95704.0,0.381977]
[1735240394170,6e-07,95705.0,95704.0,0.381977]
[1735240394376,6e-07,95705.0,95704.0,0.362977]
[1735240395795,0.0010006,95705.0,95704.0,0.364977]
[1735240395951,0.0010006,95705.0,95704.0,0.369977]
[1735240396148,6e-07,95705.0,95704.0,0.364148]
[1735240396374,0.0010006,95705.0,95704.0,0.370148]
[1735240396580,0.0010006,95705.0,95704.0,0.359148]
[1735240396761,0.0010006,95705.0,95704.0,0.364148]
[1735240396996,0.0020006,95705.0,95704.0,0.370148]
[1735240397256,0.0020006,95705.0,95704.0,0.220148]
[1735240397459,0.10598692,95705.0,95704.0,0.220148]
[1735240397710,0.11658561,95705.0,95704.0,0.220148]
[1735240398290,0.11458561,95705.0,95704.0,0.214148]
[1735240398675,0.11758561,95705.0,95704.0,0.214148]
[1735240398878,0.11758561,95705.0,95704.0,0.209148]
[1735240399175,0.11858561,95705.0,95704.0,0.209148]
[1735240399554,0.11758561,95705.0,95704.0,0.209148]
[1735240400257,0.11758561,95705.0,95704.0,0.000171]
[1735240401365,0.19078561,95705.0,95694.0,0.208998]
[1735240401565,0.13306488,95704.0,95694.0,0.208998]
[1735240401768,0.13306488,95704.0,95695.0,0.417993]
[1735240401992,0.0486,95703.0,95695.0,0.208996]
[1735240402237,0.10398632,95702.0,95695.0,0.208996]
[1735240402439,0.03905097,95701.0,95695.0,0.208996]
[1735240402636,0.10398632,95700.0,95695.0,0.208996]
[1735240405560,0.10398632,95700.0,95696.0,0.208995]
[1735240405760,0.10398632,95700.0,95696.0,0.41799]
[1735240406136,0.10398632,95700.0,95696.0,0.34499]
[1735240406344,0.10398632,95700.0,95696.0,0.41799]
[1735240406765,0.13614927,95700.0,95696.0,0.41799]
[1735240407153,0.13614927,95700.0,95691.0,0.2090896]
[1735240407753,0.13614927,95700.0,95695.0,0.000171]
[1735240408340,0.10398632,95698.0,95695.0,0.000171]
[1735240408974,0.28558632,95696.0,95695.0,0.000171]
[1735240409184,0.33138839,95696.0,95695.0,0.000171]
[1735240409384,0.23138839,95696.0,95695.0,0.000171]
[1735240410234,0.18558632,95696.0,95695.0,0.209168]
[1735240410421,0.10398632,95696.0,95695.0,0.209168]
[1735240411282,0.10398632,95696.0,95691.0,0.2090896]
[1735240411491,0.10398632,95696.0,95695.0,0.208997]
[1735240411703,0.10598632,95696.0,95695.0,0.208997]
[1735240411913,0.10398632,95696.0,95695.0,0.208997]
[1735240412297,0.10498632,95696.0,95695.0,0.211997]
[1735240412494,0.10498632,95696.0,95695.0,0.208997]
[1735240412694,0.10498632,95696.0,95695.0,0.211997]
[1735240412902,0.10398632,95696.0,95695.0,0.211997]
[1735240413111,0.10398632,95696.0,95695.0,0.212997]
[1735240414114,0.10398632,95696.0,95695.0,0.209997]
[1735240414289,0.10398632,95696.0,95695.0,0.213997]
[1735240415148,0.10398632,95696.0,95695.0,0.212997]
[1735240415353,0.11438495,95696.0,95695.0,0.214997]
[1735240416117,0.10398632,95696.0,95695.0,0.214997]
[1735240416317,0.10398632,95696.0,95695.0,0.006]
[1735240416912,6e-07,95705.0,95704.0,0.208977]
[1735240418883,5.229e-05,95705.0,95704.0,0.213977]
[1735240419094,0.00105229,95705.0,95704.0,0.213977]
[1735240419269,0.00105229,95705.0,95704.0,0.218977]
[1735240419661,0.00105229,95705.0,95704.0,0.213977]
[1735240420100,0.00105229,95705.0,95704.0,0.218977]
[1735240420356,5.229e-05,95705.0,95704.0,0.213977]
[1735240420700,0.00105229,95705.0,95704.0,0.222977]
[1735240420904,5.229e-05,95705.0,95704.0,0.213977]
[1735240421129,0.00105229,95705.0,95704.0,0.149977]
[1735240421331,0.00105229,95705.0,95704.0,0.014]
[1735240421532,5.229e-05,95705.0,95704.0,0.005]
[1735240421731,0.00105229,95705.0,95704.0,0.007]
[1735240421979,0.00105229,95705.0,95704.0,0.215977]
[1735240422186,5.229e-05,95705.0,95704.0,0.212977]
[1735240422591,5.229e-05,95705.0,95704.0,0.208977]
[1735240423001,5.229e-05,95705.0,95704.0,0.211977]
[1735240423611,0.00105229,95705.0,95704.0,0.219977]
[1735240425268,5.229e-05,95705.0,95704.0,0.211977]
[1735240425592,5.229e-05,95705.0,95704.0,0.208977]
[1735240426223,5.229e-05,95705.0,95701.0,0.208984]
[1735240426422,0.00105229,95705.0,95704.0,0.013]
[1735240427175,0.00105229,95705.0,95704.0,0.009]
[1735240427682,0.00105229,95705.0,95704.0,0.217977]
[1735240429322,0.00105229,95705.0,95704.0,0.221977]
[1735240431001,0.01394752,95705.0,95704.0,0.221977]
[1735240431200,0.00105229,95705.0,95704.0,0.004]
[1735240431870,0.00105229,95705.0,95704.0,0.212977]
[1735240432085,0.00105229,95705.0,95704.0,0.2130625]
[1735240436325,0.00105229,95705.0,95704.0,8.55e-05]
[1735240436553,0.00105229,95705.0,95704.0,0.2090625]
[1735240441296,0.07812326,95718.0,95717.0,0.208949]
[1735240441536,0.18216127,95718.0,95717.0,0.208949]
[1735240441956,0.2050674,95718.0,95715.0,0.208952]
[1735240442174,0.10398632,95717.0,95716.0,0.208951]
[1735240443733,0.10398632,95717.0,95716.0,0.209951]
[1735240444308,0.10915732,95717.0,95716.0,0.209951]
[1735240444435,0.10415732,95717.0,95716.0,0.209951]
[1735240444860,0.10415732,95717.0,95716.0,0.210951]
[1735240445055,0.10415732,95717.0,95716.0,0.209951]
[1735240445457,0.10415732,95717.0,95716.0,0.210951]
[1735240445680,0.10415732,95717.0,95716.0,0.209951]
[1735240446229,0.10415732,95717.0,95716.0,0.001]
[1735240446435,0.12738822,95717.0,95716.0,0.209951]
[1735240446634,0.10415732,95717.0,95716.0,0.209951]
[1735240446845,0.10415732,95717.0,95716.0,0.208951]
[1735240447052,0.10915732,95717.0,95716.0,0.208951]
[1735240447227,0.10915732,95717.0,95716.0,0.20687552]
[1735240447452,0.10415732,95717.0,95716.0,0.20687552]
[1735240447656,0.10715732,95717.0,95716.0,0.20687552]
[1735240448055,0.10515732,95717.0,95716.0,0.20687552]
[1735240448418,0.10715732,95717.0,95716.0,0.20687552]
[1735240449295,0.10515732,95717.0,95716.0,0.20687552]
[1735240450106,0.10415732,95717.0,95716.0,0.20687552]
[1735240450329,0.10515732,95717.0,95716.0,0.20687552]
[1735240450508,0.10715732,95717.0,95716.0,0.20687552]
[1735240451182,0.10715732,95717.0,95716.0,0.13387552]
[1735240451385,0.10715732,95717.0,95715.0,0.208952]
[1735240451800,0.10715732,95717.0,95716.0,0.208951]
[1735240452325,0.10515732,95717.0,95716.0,0.208951]
[1735240453741,0.10615732,95717.0,95716.0,0.208951]
[1735240453943,0.10415732,95717.0,95716.0,0.208951]
[1735240454154,0.10515732,95717.0,95716.0,0.208951]
[1735240454368,0.10715732,95717.0,95716.0,0.208951]
[1735240454551,0.10615732,95717.0,95716.0,0.208951]
[1735240454753,0.12256822,95717.0,95716.0,0.208951]
[1735240454956,0.12056822,95717.0,95716.0,0.208951]
[1735240455363,0.11956822,95717.0,95716.0,0.208951]
[1735240456172,0.11956822,95717.0,95716.0,0.135951]
[1735240456477,0.11956822,95717.0,95715.0,0.20826383]
[1735240456626,0.11956822,95717.0,95716.0,0.208951]
[1735240457251,0.10415732,95717.0,95716.0,0.208951]
[1735240457877,0.10415732,95717.0,95716.0,0.209951]
[1735240458227,0.000171,95717.0,95716.0,0.208951]
[1735240458606,0.000171,95717.0,95716.0,0.209951]
[1735240458985,0.000171,95717.0,95716.0,0.210951]
[1735240459976,0.000171,95717.0,95716.0,0.209951]
[1735240460380,0.002171,95717.0,95716.0,0.208951]
[1735240460989,0.000171,95717.0,95716.0,0.209951]
[1735240461196,0.000171,95717.0,95716.0,0.002]
[1735240461601,0.001171,95717.0,95716.0,0.003]
[1735240462011,0.001171,95717.0,95716.0,0.001]
[1735240462207,0.000171,95717.0,95716.0,0.208951]
[1735240463540,0.000171,95717.0,95716.0,0.210951]
[1735240463930,0.000171,95717.0,95716.0,0.208951]
[1735240464230,0.00108091,95717.0,95716.0,0.213951]
[1735240464515,8.091e-05,95717.0,95716.0,0.209951]
[1735240464927,8.091e-05,95717.0,95716.0,0.212951]
[1735240465101,8.091e-05,95717.0,95716.0,0.214951]
[1735240465306,8.091e-05,95717.0,95716.0,0.210951]
[1735240465510,8.091e-05,95717.0,95716.0,0.214951]
[1735240465959,8.091e-05,95717.0,95716.0,0.210951]
[1735240466169,8.091e-05,95717.0,95716.0,0.364951]
[1735240466381,8.091e-05,95717.0,95716.0,0.156]
[1735240466585,8.091e-05,95717.0,95716.0,0.44719557]
[1735240466786,8.091e-05,95717.0,95716.0,0.446151]
[1735240466989,8.091e-05,95717.0,95716.0,0.448151]
[1735240467488,6e-07,95718.0,95717.0,0.15]
[1735240467693,6e-07,95718.0,95717.0,0.1510445]
[1735240468879,6e-07,95718.0,95717.0,0.1540445]
[1735240469839,6e-07,95718.0,95717.0,0.1560445]
[1735240470041,6e-07,95718.0,95717.0,0.48701714]
[1735240470287,6e-07,95718.0,95717.0,0.53347264]
[1735240470690,6e-07,95718.0,95717.0,0.32948632]
[1735240470892,6e-07,95718.0,95717.0,0.32748632]
[1735240471091,6e-07,95718.0,95717.0,0.42848632]
[1735240471289,6e-07,95718.0,95717.0,0.42548632]
[1735240471493,6e-07,95718.0,95717.0,0.42948632]
[1735240471714,6e-07,95718.0,95717.0,0.53247264]
[1735240472104,6e-07,95718.0,95717.0,0.61567264]
[1735240472660,6e-07,95718.0,95717.0,1.16197264]
[1735240473516,6e-07,95718.0,95717.0,1.16897264]
[1735240477485,8.55e-05,95746.0,95745.0,0.208888]
[1735240477686,0.00015572,95746.0,95745.0,0.208888]
[1735240478902,0.00015572,95746.0,95745.0,0.213888]
[1735240479143,0.23044204,95746.0,95745.0,0.213888]
[1735240480191,0.23044204,95746.0,95740.0,0.208898]
[1735240480397,0.0772,95744.0,95740.0,0.208898]
[1735240480572,0.0772,95742.0,95740.0,0.208898]
[1735240480773,0.10398632,95741.0,95740.0,0.208898]
[1735240481220,0.10398632,95741.0,95740.0,0.135898]
[1735240481425,0.10398632,95741.0,95738.0,0.208901]
[1735240481600,0.12950591,95741.0,95738.0,0.208901]
[1735240481802,0.12950591,95741.0,95735.0,0.208908]
[1735240481803,0.0799,95739.0,95735.0,0.208908]
[1735240481977,0.10398632,95738.0,95735.0,0.208908]
[1735240482178,0.0799,95737.0,95735.0,0.208908]
[1735240482390,0.10398632,95736.0,95735.0,0.208908]
[1735240483777,0.13212071,95736.0,95735.0,0.208908]
[1735240484780,0.13212071,95736.0,95735.0,0.209908]
[1735240485179,0.13412071,95736.0,95735.0,0.208908]
[1735240486340,0.13412071,95736.0,95718.0,0.208947]
[1735240487331,0.13412071,95736.0,95735.0,0.208908]
[1735240487539,0.10398632,95736.0,95735.0,0.208908]
[1735240487924,0.10598632,95736.0,95735.0,0.208908]
[1735240488322,0.10398632,95736.0,95735.0,0.208908]
[1735240488779,0.10598632,95736.0,95735.0,0.208908]
[1735240489543,0.13412071,95736.0,95735.0,0.208908]
[1735240489963,0.13212071,95736.0,95735.0,0.208908]
[1735240490376,0.13412071,95736.0,95735.0,0.208908]
[1735240490788,0.10598632,95736.0,95735.0,0.208908]
[1735240491275,0.10598632,95736.0,95733.0,0.208913]
[1735240491577,0.10398632,95736.0,95733.0,0.208913]
[1735240491806,0.10498632,95736.0,95735.0,0.208908]
[1735240493025,0.10407192,95736.0,95735.0,0.2090792]
[1735240493434,0.10407192,95736.0,95735.0,0.2100792]
[1735240493961,0.10407192,95736.0,95735.0,0.2090792]
[1735240493962,8.56e-05,95736.0,95735.0,0.2090792]
[1735240494141,8.56e-05,95736.0,95735.0,0.2110792]
[1735240494554,8.56e-05,95736.0,95735.0,0.2130792]
[1735240494555,0.10407192,95736.0,95735.0,0.2130792]
[1735240494801,0.11447911,95736.0,95735.0,0.2110792]
[1735240495005,0.11447911,95736.0,95735.0,0.2090792]
[1735240495672,0.11447911,95736.0,95735.0,0.2100792]
[1735240495879,8.56e-05,95736.0,95735.0,0.2100792]
[1735240496365,8.56e-05,95736.0,95735.0,0.0011712]
[1735240497421,8.56e-05,95736.0,95735.0,0.2120792]
[1735240497828,8.56e-05,95736.0,95735.0,0.2110792]
[1735240498128,8.56e-05,95736.0,95735.0,0.2130792]
[1735240498666,8.56e-05,95736.0,95735.0,0.2110792]
[1735240499073,0.10407192,95736.0,95735.0,0.2110792]
[1735240499370,0.11447911,95736.0,95735.0,0.2089992]
[1735240499772,0.11547911,95736.0,95735.0,0.2089992]
[1735240499970,0.10507192,95736.0,95735.0,0.2089992]
[1735240500201,0.10407192,95736.0,95735.0,0.2089992]
[1735240500409,0.22987192,95736.0,95735.0,9.12e-05]
[1735240500615,0.22987192,95736.0,95735.0,0.0020912]
[1735240500784,0.22887192,95736.0,95735.0,0.0020912]
[1735240501021,0.26275911,95736.0,95735.0,9.12e-05]
[1735240501222,0.26175911,95736.0,95735.0,9.12e-05]
[1735240501603,0.22887192,95736.0,95735.0,9.12e-05]
[1735240501810,0.10407192,95736.0,95735.0,9.12e-05]
[1735240502014,0.10407192,95736.0,95733.0,0.208913]
[1735240502214,0.10398632,95735.0,95733.0,0.208913]
[1735240502390,0.10398632,95735.0,95733.0,0.417826]
[1735240503173,0.11469351,95735.0,95733.0,0.417826]
[1735240503783,0.10398632,95735.0,95733.0,0.418826]
[1735240504174,0.22878632,95734.0,95733.0,0.001]
[1735240504378,0.1,95729.0,95715.0,8.55e-05]
[1735240504581,0.10398632,95718.0,95715.0,8.55e-05]
[1735240504785,0.47263893,95718.0,95715.0,8.55e-05]
[1735240504983,0.51990282,95718.0,95715.0,8.55e-05]
[1735240505443,0.123,95705.0,95688.0,0.0938765]
[1735240505651,0.45178632,95705.0,95688.0,0.0938765]
[1735240505853,0.45178632,95705.0,95692.0,0.209003]
[1735240506269,0.0772,95699.0,95687.0,0.209012]
[1735240506472,0.10398632,95695.0,95687.0,0.209012]
[1735240506678,0.0476,95693.0,95692.0,0.209003]
[1735240506884,0.15158632,95693.0,95692.0,0.209003]
[1735240507087,0.15158632,95693.0,95691.0,0.00013729]
[1735240507338,0.18118632,95692.0,95691.0,0.00013729]
[1735240509467,0.18318632,95692.0,95691.0,0.00113729]
[1735240509672,0.20716495,95692.0,95691.0,0.00113729]
[1735240509905,0.20716495,95692.0,95691.0,0.00013729]
[1735240510110,0.21216495,95692.0,95691.0,0.00113729]
[1735240510580,0.20516495,95692.0,95691.0,0.00013729]
[1735240510803,0.21016495,95692.0,95691.0,0.00113729]
[1735240510991,0.20616495,95692.0,95691.0,0.00013729]
[1735240511211,0.20616495,95692.0,95688.0,0.209011]
[1735240511423,0.02747719,95691.0,95689.0,5.169e-05]
[1735240511643,0.10398632,95690.0,95689.0,5.169e-05]
[1735240512752,0.10398632,95690.0,95689.0,0.20906069]
[1735240512952,0.10798632,95690.0,95689.0,0.20906069]
[1735240514201,0.20898632,95690.0,95689.0,5.169e-05]
[1735240514413,0.33531336,95690.0,95689.0,5.169e-05]
[1735240515482,0.35831336,95690.0,95689.0,5.169e-05]
[1735240515687,0.40511336,95690.0,95689.0,5.169e-05]
[1735240516393,0.1,95686.0,95676.0,0.209037]
[1735240516600,0.10398632,95681.0,95677.0,0.418072]
[1735240517438,0.02039863,95680.0,95677.0,0.418072]
[1735240517640,0.10398632,95679.0,95678.0,0.209034]
[1735240518058,0.18208632,95679.0,95676.0,0.20916121]
[1735240518371,0.15078632,95677.0,95676.0,0.00012421]
[1735240519430,0.25078632,95677.0,95676.0,0.00012421]
[1735240519639,0.29367495,95677.0,95676.0,0.00012421]